Cogmind - Beta 16.1 @@@ ROGUE MODE // 2026.04.26 @ 19:38:34 Player: JuustuToug Result: Heading to fleet! Performance ------------- Evolutions (9) 4500 Regions Visited (26) 5200 Robots Destroyed (259) 1295 Value Destroyed (11540) 11540 Prototype IDs (62) 1240 Alien Tech Used (6) 1200 Bonus (10441) 10441 TOTAL SCORE: 35416 Bonus ------- High Alert Combat Kills 157 Follower Combat Kills 1566 Hunted by Unchained 500 Network Hubs Disabled 200 Met Data Miner 300 Met Zhirov 300 Built Enhanced Grunts 300 Met R17 at Cetus 500 Used Core Reset Matrix 3000 Scanned by Researcher 500 Acquired SGEMP 2000 Win 3000 Friendly Fire -1882 Cogmind --------- Core Integrity 645/1600 Matter 38/300 Energy 98/100 System Corruption 0% +Membrane Temperature Cool (4) Movement Flying (37) Location To Fleet Rendezvous Parts ------- > --- POWER (3) -------- (None) > --- PROPULSION (8) --- Field Propulsion Array Q-thruster > --- UTILITY (11) ----- Machine Analyzer Experimental Optical Array Advanced Sensor Array Advanced Signal Interpreter Advanced Melee Analysis Suite Hacking Suite Advanced Hacking Suite Improved System Shield Microwarp Drive > --- WEAPON (3) ------- (None) > --- INVENTORY (5) ---- Improved Quantum Reactor Experimental Gyrokinetic Inverter Helical Railgun Peak State ------------ > --- POWER ------------ Improved Fusion Compressor Improved Quantum Reactor > --- PROPULSION ------- Impulse Thruster Field Propulsion Array Q-thruster Q-thruster Q-thruster Q-thruster Q-thruster > --- UTILITY ---------- Machine Analyzer Experimental Optical Array Advanced Sensor Array Advanced Signal Interpreter Advanced Melee Analysis Suite Hacking Suite Advanced Hacking Suite Improved System Shield Microwarp Drive > --- WEAPON ----------- Improved Potential Cannon Helical Railgun > --- INVENTORY -------- Experimental Gyrokinetic Inverter SGEMP Prototype [Rating: 198] Favorites ----------- Power Constructs Engine Heavy Deuterium Engine Power Core Light Nuclear Core Reactor Constructs Propulsion Constructs Treads Light Treads Leg Aluminum Leg Wheel Compact Wheel Hover Unit Combat Linear Gravjet Flight Unit Constructs Utility Armored Scrap Engine Device Armored Scrap Engine Storage High-capacity Storage Unit Processor Machine Analyzer Hackware Improved Hacking Suite Protection Centrium Medium Armor Plating Artifact Microwarp Drive Weapon Constructs Energy Gun Small Laser Energy Cannon Constructs Ballistic Gun Gauss Rifle Ballistic Cannon Graviton Cannon Launcher Tiamat Missile Launcher Slashing Weapon Great Axe Piercing Weapon Spear Build | -11 -10 -10 -8 -8 -8 -6 -6 -6 -6 -5 -5 -5 -5 -5 -5 -4 -4 -4 -4 -3 -3 -3 -2 -2 -2 -1 ------- Run | Yrd Mat Sub Mat Sto Rec Fac Low Low Dat Pro Fac Ext Cet Arc Hub Fac Upp Upp Zhi Pro Res Tes Res Qua Sec Acc Slots Evolved 18 | . . . 4 . . 4 . . . . 2 . . . . 2 . . . . 2 . 2 . . 2 Power 2 | . . . . . . 1 . . . . . . . . . . . . . . 1 . . . . . Propulsion 6 | . . . 2 . . 1 . . . . . . . . . 1 . . . . . . 1 . . 1 Utility 9 | . . . 1 . . 2 . . . . 2 . . . . 1 . . . . 1 . 1 . . 1 Weapon 1 | . . . 1 . . . . . . . . . . . . . . . . . . . . . . . Parts Attached 170 | 8 2 6 38 11 5 12 3 . . 8 5 4 2 4 1 2 4 3 4 3 9 10 4 1 6 15 Power 12 | 1 . 1 5 . . 2 . . . . . . . . . . . . . . . . . . 1 2 Engine 6 | 1 . 1 3 . . 1 . . . . . . . . . . . . . . . . . . . . Core 4 | . . . 2 . . 1 . . . . . . . . . . . . . . . . . . . 1 Reactor 2 | . . . . . . . . . . . . . . . . . . . . . . . . . 1 1 Propulsion 37 | 2 . 1 14 6 . 2 . . . . . . . . . . . . . . . . 2 1 1 8 Treads 19 | 2 . . 8 6 . 2 . . . . . . . . . . . . . . . . 1 . . . Leg 1 | . . . 1 . . . . . . . . . . . . . . . . . . . . . . . Wheel 5 | . . 1 4 . . . . . . . . . . . . . . . . . . . . . . . Hover 4 | . . . 1 . . . . . . . . . . . . . . . . . . . 1 1 1 . Flight 8 | . . . . . . . . . . . . . . . . . . . . . . . . . . 8 Utility 78 | 2 2 1 9 . 1 6 2 . . 4 5 4 1 4 1 2 4 2 4 3 7 5 2 . 3 4 Device 38 | 1 1 1 4 . 1 3 1 . . 3 4 2 . . 1 . 1 2 . 3 6 3 . . . 1 Storage 9 | 1 1 . 1 . . 1 . . . 1 . . . . . . 1 . 2 . . 1 . . . . Processor 10 | . . . 3 . . 2 . . . . . . . . . . 1 . . . 1 1 . . . 2 Hackware 12 | . . . . . . . 1 . . . 1 1 . 3 . 1 . . 1 . . . 2 . 1 1 Protection 7 | . . . 1 . . . . . . . . 1 1 1 . 1 1 . 1 . . . . . . . Artifact 2 | . . . . . . . . . . . . . . . . . . . . . . . . . 2 . Weapon 43 | 3 . 3 10 5 4 2 1 . . 4 . . 1 . . . . 1 . . 2 5 . . 1 1 Energy Gun 8 | 1 . 1 1 2 1 . . . . . . . . . . . . 1 . . 1 . . . . . Energy Cannon 4 | . . 1 . . . . . . . . . . . . . . . . . . . 2 . . 1 . Ballistic Gun 16 | 2 . 1 7 2 2 . . . . . . . . . . . . . . . . 1 . . . 1 Ballistic Cannon 1 | . . . . . . . . . . . . . . . . . . . . . . 1 . . . . Launcher 9 | . . . 1 1 1 . . . . 3 . . 1 . . . . . . . 1 1 . . . . Special Weapon . | . . . . . . . . . . . . . . . . . . . . . . . . . . . Impact Weapon . | . . . . . . . . . . . . . . . . . . . . . . . . . . . Slashing Weapon 3 | . . . 1 . . . 1 . . 1 . . . . . . . . . . . . . . . . Piercing Weapon 2 | . . . . . . 2 . . . . . . . . . . . . . . . . . . . . Special Melee Weapon . | . . . . . . . . . . . . . . . . . . . . . . . . . . . Unidentified Prototypes 25 | . . . 4 3 1 . . . . 2 . . 1 . . . . . 4 . 1 5 . 1 1 2 Parts Lost 73 | . 1 4 6 . . 3 1 . . 3 4 2 . . 2 4 1 . . . 5 16 5 2 3 11 Power 10 | . . 1 1 . . 1 . . . 1 1 . . . . . . . . . . 3 . . . 2 Propulsion 23 | . . 1 2 . . . . . . . 1 . . . 1 . 1 . . . . 5 2 1 1 8 Utility 23 | . 1 1 1 . . . . . . 1 2 2 . . . 2 . . . . 3 6 2 1 1 . Weapon 17 | . . 1 2 . . 2 1 . . 1 . . . . 1 2 . . . . 2 2 1 . 1 1 Highest Loss Streak 6 | . 1 3 1 . . 2 1 . . 2 2 1 . . 2 1 2 . . . 1 4 3 2 1 6 To Critical Strikes 3 | . . . . . . . . . . . . . . . . . . . . . . 3 . . . . Average Backups 15 | 2 5 6 13 15 11 14 17 18 20 18 14 14 16 19 19 18 17 17 18 19 18 18 13 2 1 1 Power . | . 1 . . 1 . . 1 1 1 . . . . . . . . . 1 1 . . . . . . Propulsion . | . 1 . 2 3 . . . . . . . . . . . . . . . . . . . . . . Utility 9 | . 1 3 4 5 7 9 11 12 14 12 10 10 12 14 14 13 13 13 13 13 13 11 7 . . . Weapon 3 | . 1 2 6 6 3 3 4 4 5 4 4 4 3 4 4 3 2 3 3 3 3 4 4 2 1 1 Tool/Special . | . . . . . . . . . . . . . . . . . . . . . . . . . . . Unused Backups 56 | . . . 18 3 9 3 1 . . 6 . 3 . 1 . . 2 . 1 . 2 2 5 . . . Power 4 | . . . 1 . 1 . . . . 1 . . . . . . . . . . 1 . . . . . Propulsion 5 | . . . . 1 4 . . . . . . . . . . . . . . . . . . . . . Utility 22 | . . . 5 . 2 2 1 . . 2 . 1 . 1 . . 2 . 1 . . 2 3 . . . Weapon 23 | . . . 12 2 2 1 . . . 3 . 2 . . . . . . . . . . 1 . . . Tool/Special 2 | . . . . . . . . . . . . . . . . . . . . . 1 . 1 . . . Average Slot Usage (%) 61 | . 100 98 96 99 60 52 52 50 53 52 50 49 52 52 52 50 56 57 55 57 56 50 44 31 35 63 Engine 3 | . 14 14 6 9 8 10 2 . . 1 5 . . . . . . . . . . . . . . . Core 1 | . . . 2 . . . 3 6 6 4 . 4 2 . . . . . . . . . . . . 1 Reactor 1 | . . . . . . . . . . . . . 2 5 5 5 5 5 5 5 4 3 . . . 3 Treads 9 | . 28 18 28 36 18 3 4 6 6 2 . . 5 3 . 3 2 2 . . 1 3 . 4 1 . Leg 1 | . . . . . . 1 . . . 3 2 2 . . . . . 2 5 5 2 . . . . . Wheel 1 | . . 8 5 . 2 1 . . . . . . . . . . . . . . . . . . . . Device 10 | . 14 13 5 . 8 9 12 13 13 12 16 15 13 11 11 12 12 15 13 13 13 7 6 . . 2 Storage 6 | . 14 14 9 9 9 6 6 6 6 6 5 5 5 5 5 5 5 5 5 5 4 8 6 . . . Processor 5 | . . . 9 18 1 9 6 6 6 6 5 . . . . . 4 5 5 5 8 8 8 8 8 14 Hackware 4 | . . . . . . . . . . . 3 8 11 11 11 11 10 10 10 10 9 8 11 10 7 10 Protection 1 | . . . 3 . . . . . . . . . 2 5 5 5 2 . . 2 . . . . . . Energy Gun 1 | . . . . . 2 . . 3 6 6 . . . . . . 4 1 1 5 1 . . . . . Energy Cannon 1 | . . 9 . . 2 2 . . . . . 2 3 5 5 4 . . . . . 2 4 . 3 1 Ballistic Gun 5 | . 28 18 25 26 5 . . . . . 4 . . . . . . . . . . 1 . . . . Piercing Weapon 1 | . . . . . . . 5 . . 1 . . . . . . 5 5 5 5 4 . . . . . Peak Build Rating 198 | 7 7 11 32 42 52 68 75 69 66 72 69 83 97 122 122 118 121 121 120 129 135 141 115 57 149 198 Average Rating 72 | 5 6 8 26 38 40 59 67 63 66 68 65 73 84 109 120 109 110 108 115 118 121 117 87 55 86 166 On Entrance 71 | . 7 7 11 32 40 43 65 60 66 66 59 64 69 94 122 109 110 104 116 116 121 109 80 57 57 140 Avg Prop Armor Cover (%) 23 | . . 12 8 . 8 8 . . . . . . . . . . . . . . . . 35 42 35 10 Naked Turns . | . . . . . . . . . . . . . . . . . . . . . . . . . . . Heaviest Build 111 | 15 20 27 47 42 42 63 67 67 67 68 57 64 87 111 111 104 86 74 73 96 101 103 77 . 37 59 Greatest Support 229 | 40 40 40 80 88 88 62 92 92 92 92 92 104 104 130 130 156 192 200 200 200 229 222 48 3 39 62 Greatest Overweight (x) 22 | . . 1 1 . 1 1 . . 22 . . . . 1 . . . . . . . 1 2 . 6 1 Average Overweight (x) . | . . . . . . . . . . . . . . . . . . . . . . . . . . . Largest Inventory Capacity 20 | 8 10 10 15 15 15 20 20 20 20 20 20 20 20 20 20 20 20 20 20 20 20 20 20 5 5 5 Average Capacity 17 | 7 9 10 14 15 15 17 20 20 20 20 20 20 20 20 20 20 20 20 20 20 20 20 18 5 5 5 Most Carried 20 | 4 6 8 15 15 15 18 20 20 20 20 17 17 20 20 20 20 20 19 20 20 20 20 20 5 5 5 Average Carried 15 | 2 5 6 13 14 11 14 17 18 20 18 14 14 16 19 19 18 17 17 18 19 18 19 15 5 4 4 Final Capacity 20 | 8 10 10 15 15 15 20 20 20 20 20 20 20 20 20 20 20 20 20 20 20 20 20 5 5 5 5 Final Carried 20 | 4 6 7 15 15 15 16 18 20 20 17 17 15 20 20 20 20 17 18 19 20 17 19 5 5 4 3 Scrap Engine Consumption 268 | . . . . . 50 18 12 4 . 9 10 52 22 6 . 17 20 3 3 5 20 9 8 . . . Constructs Created 8 | . . . . . 3 . . 1 . . . 2 . . . . 1 . . . . 1 . . . . Constructs Modified 113 | . . . . . 16 8 5 1 . 3 3 25 11 4 . 6 10 3 2 1 9 4 2 . . . Class Distribution -------------------- 29% | Hacker-Construct 25% | Construct 12% | Mutant 8% | Commander-Construct 6% | Scavenger-Skirmisher 4% | Skirmisher 4% | Hacker-Mutant 3% | Scavenger-Tank Dominant Class ---------------- Mutant | -10/Materials Mutant | -10/Subcaves Scavenger-Skirmisher | -8/Materials Skirmisher | -8/Storage Mutant | -8/Recycling Construct | -6/Factory Construct | -6/Lower Caves Construct | -6/Lower Caves Construct | -6/Data Miner Construct | -5/Proximity Caves Construct | -5/Factory Hacker-Construct | -5/Extension Hacker-Construct | -5/Cetus Commander-Construct | -5/Archives Commander-Construct | -5/Hub_04(d) Hacker-Construct | -4/Factory Hacker-Construct | -4/Upper Caves Hacker-Construct | -4/Upper Caves Hacker-Construct | -4/Zhirov Hacker-Construct | -3/Proximity Caves Hacker-Construct | -3/Research Hacker-Skirmisher | -3/Testing Hacker-Mutant | -2/Research Hacker-Mutant | -2/Quarantine Hacker-Mutant | -2/Section 7 Hacker-Scout | -1/Access Resources | -11 -10 -10 -8 -8 -8 -6 -6 -6 -6 -5 -5 -5 -5 -5 -5 -4 -4 -4 -4 -3 -3 -3 -2 -2 -2 -1 ----------- Run | Yrd Mat Sub Mat Sto Rec Fac Low Low Dat Pro Fac Ext Cet Arc Hub Fac Upp Upp Zhi Pro Res Tes Res Qua Sec Acc Matter Collected 8567 | 322 242 81 1959 532 419 184 64 183 . 916 50 390 139 66 32 246 338 184 325 482 798 223 194 7 177 14 Remotely . | . . . . . . . . . . . . . . . . . . . . . . . . . . . Salvage Created 12170 | 124 264 142 2169 639 944 536 367 301 . 998 16 457 571 373 32 341 826 288 125 443 1308 542 146 . 177 41 Parts 536 | 8 15 4 131 37 38 23 10 6 . 21 1 19 26 17 1 20 40 6 2 16 37 36 13 . 8 1 Haulers Intercepted 11 | . . . 6 3 . . . . . . . . . . . 1 . . . . . 1 . . . . Recyclers Shooed 5 | . . . 2 1 . 2 . . . . . . . . . . . . . . . . . . . . Parts Field Recycled . | . . . . . . . . . . . . . . . . . . . . . . . . . . . Retrieved Matter . | . . . . . . . . . . . . . . . . . . . . . . . . . . . Parts Self-Destructed 44 | . . 1 . . . . 3 7 . 12 . . . . . . 6 2 . 13 . . . . . . Prevented 30 | . . . . . . . 2 . . . . . . . . . 26 2 . . . . . . . . Parts Restored . | . . . . . . . . . . . . . . . . . . . . . . . . . . . Kills | -11 -10 -10 -8 -8 -8 -6 -6 -6 -6 -5 -5 -5 -5 -5 -5 -4 -4 -4 -4 -3 -3 -3 -2 -2 -2 -1 ------- Run | Yrd Mat Sub Mat Sto Rec Fac Low Low Dat Pro Fac Ext Cet Arc Hub Fac Upp Upp Zhi Pro Res Tes Res Qua Sec Acc Combat Hostiles Destroyed 194 | . 6 3 37 8 12 13 3 7 . 13 . 10 7 2 . 7 18 . . 10 18 12 7 . . 1 Melee 2 | . . . . . . . 1 . . 1 . . . . . . . . . . . . . . . . Guns 75 | . 6 1 36 8 10 . . 2 . 5 . . . . . . . . . 5 1 1 . . . . Cannons 41 | . . 1 . . 2 13 . . . . . 10 . 2 . 3 . . . . 4 2 3 . . 1 AOE 60 | . . . 1 . . . 2 5 . 2 . . 4 . . 4 13 . . 5 11 9 4 . . . Classes Destroyed 24 | 2 3 1 7 . 1 2 2 . . 3 . . . . . . . . . 1 . 2 . . . . Worker 7 | . . . 2 . . . . . . . 1 1 . . 1 . . . . . . 2 . . . . Builder 10 | . . . 2 . . 1 . . . . . 2 . . . 1 . . . . . 4 . . . . Tunneler 5 | 2 . . 1 . . . . . . . . 1 . . . . . . . . 1 . . . . . Hauler 11 | . . . 6 3 . . . . . . . . . . . 1 . . . . . 1 . . . . Recycler 10 | 1 1 . 4 1 1 . . . . . . . . . . . . . . . 1 . . . 1 . Minesweeper 1 | . . . . . . . . . . . . . . . . . . . . 1 . . . . . . Mechanic 2 | . . . 1 . . . . . . . . . . . . . . . . . 1 . . . . . Operator 11 | . . . 2 . . . . . . . . . . 7 1 1 . . . . . . . . . . Drone 2 | . . . . . . . . . . 2 . . . . . . . . . . . . . . . . Watcher 6 | . 1 . 2 . . . . . . . . . 2 . . . . . . . . . . . 1 . Swarmer 48 | . 2 . 14 . 1 6 . . . . . 2 . . . . 9 . . 5 . 5 4 . . . Grunt 67 | . 4 2 13 2 2 2 2 6 . 2 . 4 . . . 3 8 . . 3 11 3 . . . . Brawler 3 | . . . . . . . 1 1 . . . . . . . . 1 . . . . . . . . . Duelist 1 | . . . . . . . . . . 1 . . . . . . . . . . . . . . . . Protector 1 | . . . . . . . . . . 1 . . . . . . . . . . . . . . . . Researcher 1 | . . . . . . . . . . . . . . . . . . . . . . 1 . . . . Sentry 30 | . . . 9 6 6 1 . . . 2 . 1 . 2 . . . . . 1 2 . . . . . Demolisher 6 | . . . . . . 2 . . . 4 . . . . . . . . . . . . . . . . Hunter 4 | . . . 1 . 1 . . . . 1 . 1 . . . . . . . . . . . . . . Programmer 20 | . . . . . 1 1 . . . 2 . . . . . 4 . . . . 5 3 3 . . 1 Behemoth 4 | . . . . . . 1 . . . . . 2 . . . . . . . 1 . . . . . . Cetus Guard 7 | . . . . . . . . . . . . . 7 . . . . . . . . . . . . . Striker 1 | . . . . . . . . . . . . . . . . . . . . . . 1 . . . . Subdweller 2 | . . 1 . . 1 . . . . . . . . . . . . . . . . . . . . . Decomposer 3 | . . . . . . . . 1 . . . . . . . . . 2 . . . . . . . . Samaritan 3 | . . . . . . . 3 . . . . . . . . . . . . . . . . . . . Best Kill Streak 9 | 3 3 2 5 2 6 4 2 7 . 3 1 2 5 3 2 5 5 . . 5 9 6 3 . 1 1 Combat Bots Only 9 | . 2 2 5 2 6 4 2 7 . 3 . 2 4 1 . 3 5 . . 5 9 4 3 . . 1 Max Kills in Single Turn 3 | 1 1 1 2 1 1 1 2 2 . 1 1 2 2 1 2 3 3 1 . 2 3 3 2 . 1 1 Gunslinging 1 | . . . 1 . . . . . . . . . . . . . . . . . . . . . . . Exploded 3 | . . . 1 . . . 2 2 . 1 . . 2 . . 2 3 . . 2 3 3 2 . . . Melee 1 | . . . . . . . 1 . . 1 . . . . . . . . . . . . . . . . Uniques/NPCs Destroyed 1 | . . . . . . . . . . . . . 1 . . . . . . . . . . . . . A7 (-5/Cetus) Combat | -11 -10 -10 -8 -8 -8 -6 -6 -6 -6 -5 -5 -5 -5 -5 -5 -4 -4 -4 -4 -3 -3 -3 -2 -2 -2 -1 -------- Run | Yrd Mat Sub Mat Sto Rec Fac Low Low Dat Pro Fac Ext Cet Arc Hub Fac Upp Upp Zhi Pro Res Tes Res Qua Sec Acc Hostile Shots Fired 1997 | . 54 18 156 37 16 170 14 10 . 67 73 56 21 9 135 123 75 . . 138 240 226 153 17 51 138 Missed 618 | . 13 2 36 5 5 58 5 1 . 16 25 16 9 2 41 35 30 . . 37 84 63 58 4 15 58 Hits 1379 | . 41 16 120 32 11 112 9 9 . 51 48 40 12 7 94 88 45 . . 101 156 163 95 13 36 80 Melee 12 | . . . . . . 1 . . . . . . . . . . . . . . . 11 . . . . Projectile 1367 | . 41 16 120 32 11 111 9 9 . 51 48 40 12 7 94 88 45 . . 101 156 152 95 13 36 80 AOE 26 | . . . . . . 7 . . . 19 . . . . . . . . . . . . . . . . Critical Strikes 59 | . . . 4 2 . 2 . 2 . 1 2 5 3 . 3 6 4 . . 2 7 10 3 . 1 2 Part Disruptions 1 | . . . . . . . . . . . . . . . . . . . . . . 1 . . . . Damage Taken 29682 | . 490 291 1522 653 211 2286 169 175 . 1679 1103 724 245 175 2112 1915 985 . . 1559 2977 4413 2143 264 1398 2193 Core 4538 | . 104 100 105 45 35 396 . 39 . 217 176 72 33 . 113 78 116 . . 184 163 565 488 27 527 955 Absorbed by Shields 1759 | . . . 64 . . . . . . . . 150 79 . . . . . . 1067 399 . . . . . Regen/Repaired (Parts) 7308 | . . . 147 95 21 535 872 . . 565 467 724 102 13 . 448 520 102 . 693 1223 441 340 . . . Core Remaining (%) 49 | 100 . 18 . . 66 . . . . 23 . . . . 60 . . . . 67 . 40 . . 28 40 Volleys Fired 955 | 9 37 11 136 25 88 81 6 13 . 90 5 55 20 20 13 30 36 29 19 74 83 33 26 . 9 7 Largest 3 | 2 2 2 3 3 3 1 1 1 . 2 1 1 1 1 1 1 2 1 1 1 2 1 1 . 1 1 Hottest 200 | 40 40 105 125 81 84 65 39 39 . 92 26 83 126 126 109 72 149 103 60 60 92 200 200 . 120 200 Shots Fired 1325 | 18 74 21 398 73 94 81 6 13 . 94 5 55 20 20 13 29 37 29 19 73 82 29 26 . 9 7 Gun 847 | 18 74 13 389 73 78 . . 7 . 75 5 . . . . . 13 6 . 66 17 8 . . . 5 Cannon 381 | . . 8 7 . 15 81 4 . . . . 55 9 20 13 23 . 23 19 . 49 20 24 . 9 2 Launcher 97 | . . . 2 . 1 . 2 6 . 19 . . 11 . . 6 24 . . 7 16 1 2 . . . Special . | . . . . . . . . . . . . . . . . . . . . . . . . . . . Kinetic 808 | 18 74 12 368 73 86 31 . . . . 5 32 1 . . . . 23 19 . 30 9 22 . . 5 Thermal 420 | . . 9 28 . 7 50 4 7 . 75 . 23 8 20 13 23 13 6 . 66 36 19 2 . 9 2 Explosive 60 | . . . 2 . 1 . 2 6 . 19 . . . . . 6 5 . . 7 9 1 2 . . . Electromagnetic 37 | . . . . . . . . . . . . . 11 . . . 19 . . . 7 . . . . . Robot Hit Streak 20 | 8 13 6 12 7 15 7 3 13 . 13 3 19 9 8 8 7 5 7 15 20 12 7 4 . 4 5 Robot Miss Streak 5 | 1 4 1 5 5 3 3 1 1 . 3 1 3 1 2 2 2 1 4 1 1 5 2 3 . . 1 Penetration Max 1 | . . . 1 . . . . . . . . 1 . . . . . . . . . . . . . . Secondary Targets 6 | . 1 . 5 . . . . . . . . . . . . . . . . . . . . . . . Max Gunslinging Chain 1 | . 1 . 1 . . . . . . . . . . . . . . . . . . . . . . . Shots Hit Robots 850 | 12 48 13 232 36 69 49 13 11 . 77 5 44 12 17 2 18 21 13 18 59 48 10 15 . 3 5 Core Hits 513 | 4 13 3 87 20 29 17 10 18 . 83 2 28 23 6 3 17 28 6 3 27 43 21 12 1 7 2 Critical Kills 7 | . . 1 2 . 1 . . . . . . 1 . 2 . . . . . . . . . . . . Critical Parts Destroyed 6 | . . . 3 . . . . . . . . 1 . 1 . 1 . . . . . . . . . . Critical Strikes 20 | . . 1 5 . 1 . . . . 1 . 3 . 4 . 1 1 1 . . 1 . 1 . . . Burn 2 | . . . . . . . . . . . . . . . . . 1 1 . . . . . . . . Meltdown 1 | . . 1 . . . . . . . . . . . . . . . . . . . . . . . . Destroy 14 | . . . 5 . 1 . . . . . . 3 . 4 . 1 . . . . . . . . . . Blast 1 | . . . . . . . . . . . . . . . . . . . . . . . 1 . . . Impale 2 | . . . . . . . . . . 1 . . . . . . . . . . 1 . . . . . Melee Attacks 57 | . . . 2 . . . 12 . . 11 . . . . . 1 . . . 5 22 4 . . . . Impact . | . . . . . . . . . . . . . . . . . . . . . . . . . . . Slashing 8 | . . . 2 . . . 6 . . . . . . . . . . . . . . . . . . . Piercing 49 | . . . . . . . 6 . . 11 . . . . . 1 . . . 5 22 4 . . . . Sneak Attacks 11 | . . . . . . . 6 . . 1 . . . . . . . . . 2 2 . . . . . Combat Hostiles . | . . . . . . . . . . . . . . . . . . . . . . . . . . . Follow-up Attacks 1 | . . . . . . . 1 . . . . . . . . . . . . . . . . . . . Damage Inflicted 38676 | 146 606 225 4647 635 1256 2451 837 1102 . 4568 150 1691 1697 1666 527 1766 1630 335 474 2682 3604 3979 1358 1 292 351 Guns 10884 | 146 606 117 4458 630 978 . . 117 . 1565 68 . . . . . 111 91 . 1498 283 107 . . . 109 Cannons 11282 | . . 108 25 . 278 2407 49 . . . . 1683 454 1666 204 740 . 244 474 . 1290 726 583 . 129 222 Explosions 14839 | . . . 138 . . . 194 985 . 2435 . . 1243 . 311 1026 1519 . . 1067 1871 3140 767 . 143 . Melee 1439 | . . . . . . . 594 . . 568 . . . . . . . . . 117 160 . . . . . Ramming 232 | . . . 26 5 . 44 . . . . 82 8 . . 12 . . . . . . 6 8 1 20 20 Kinetic 10999 | 146 606 117 4286 630 1256 703 . . . . 68 839 . . . . . 244 474 . 831 107 583 . . 109 Thermal 14426 | . . 108 197 . . 1704 49 117 . 1565 . 844 743 1666 204 740 111 91 . 1498 780 3392 266 . 129 222 Explosive 8894 | . . . 138 . . . 194 985 . 2435 . . . . . 1026 596 . . 1067 1335 474 501 . 143 . Electromagnetic 2686 | . . . . . . . . . . . . . 954 . 311 . 923 . . . 498 . . . . . Impact . | . . . . . . . . . . . . . . . . . . . . . . . . . . . Slashing 475 | . . . . . . . 475 . . . . . . . . . . . . . . . . . . . Piercing 964 | . . . . . . . 119 . . 568 . . . . . . . . . 117 160 . . . . . Highest Corruption 32 | . . . 1 5 5 2 2 2 2 6 . . . . 6 9 9 9 4 4 24 32 15 15 15 . Average Corruption 5 | . . . 1 3 5 1 2 2 2 4 . . . . 1 6 9 5 4 4 7 26 8 15 15 . Corruption Purged 5 | . . . . . . . . . . . . . . . . . . 5 . . . . . . . . Corruption Blocked . | . . . . . . . . . . . . . . . . . . . . . . . . . . . Effects 379 | . . . 19 17 66 3 16 6 1 26 . . . . . 25 36 19 6 33 23 60 7 12 4 . Message Errors 100 | . . . 7 7 24 . 5 2 . 5 . . . . . 5 10 5 3 10 4 12 . 1 . . Matter Fused 90 | . . . . 3 10 . 3 3 1 7 . . . . . 10 13 5 2 6 3 16 3 4 1 . Heat Flow Errors 30 | . . . 1 1 4 1 1 . . 2 . . . . . . 3 1 . 3 2 9 . . 2 . Energy Discharges 41 | . . . 3 . 12 . 2 1 . 3 . . . . . 2 1 1 . 4 3 3 2 3 1 . Parts Rejected 8 | . . . . . . 2 . . . 1 . . . . . 1 . . . 1 1 2 . . . . Parts Fused 5 | . . . . . . . 1 . . 1 . . . . . 1 1 1 . . . . . . . . Data Loss (minor) 53 | . . . 5 3 11 . 3 . . 2 . . . . . 3 5 4 . 5 5 5 1 1 . . Data Loss (major) 18 | . . . 3 . 2 . . . . 2 . . . . . 1 1 2 . 2 2 2 1 . . . Misfires 3 | . . . . 1 1 . . . . 1 . . . . . . . . . . . . . . . . Alerts 14 | . . . . 1 2 . 1 . . 1 . . . . . 1 2 . 1 1 . 3 . 1 . . Misdirections 7 | . . . . . . . . . . . . . . . . . . . . . 1 4 . 2 . . Weapon Failures 10 | . . . . 1 . . . . . 1 . . . . . 1 . . . 1 2 4 . . . . Overload Shots . | . . . . . . . . . . . . . . . . . . . . . . . . . . . Overflow Damage 2218 | . . 8 3 . 55 171 191 3 . 100 . 39 9 474 10 107 . . . 123 109 626 175 . 15 . Projectiles 1199 | . . 8 . . 55 171 . . . . . 39 . 474 . 89 . . . . 84 211 58 . 10 . Explosions 764 | . . . . . . . . 3 . 39 . . 9 . 10 18 . . . 123 25 415 117 . 5 . Melee 255 | . . . 3 . . . 191 . . 61 . . . . . . . . . . . . . . . . Knockbacks 27 | . . . 1 . . 3 . . . . 2 10 . . 1 . . 3 . . 5 . 2 . . . Impact 4 | . . . 1 . . . . . . . 2 . . . 1 . . . . . . . . . . . Kinetic 21 | . . . . . . 2 . . . . . 10 . . . . . 2 . . 5 . 2 . . . Secondary 2 | . . . . . . 1 . . . . . . . . . . . 1 . . . . . . . . Self-Inflicted Damage 1055 | . . . 6 . 5 . . . . . 39 . 7 . 105 201 137 . . 35 . 493 4 . 3 20 Shots 24 | . . . . . 1 . . . . . . . 1 . 1 6 8 . . 1 . 6 . . . . Rammed 36 | . . . 4 2 . 1 . . . . 5 2 . . 2 . . . . . . 2 1 5 12 . Targets Rammed 38 | . . . 5 2 . 2 . . . . 5 2 . . 2 . . . . . . 2 1 5 12 . Kicked 1 | . . . . . . 1 . . . . . . . . . . . . . . . . . . . . Crushed 1 | . . . 1 . . . . . . . . . . . . . . . . . . . . . . . Highest Temperature 477 | . 2 78 199 189 268 477 155 33 . 122 13 195 392 158 258 156 279 258 . 211 114 325 68 . 172 90 Average Temperature 62 | . 2 33 51 46 65 70 56 12 . 20 13 70 128 56 79 56 78 56 . 92 66 93 39 . 48 53 Received Heat Transfer 4717 | . 216 129 583 252 27 647 81 108 . 72 210 138 . 27 630 224 244 . . 519 220 165 27 36 153 9 Effects 9 | . . . . . . 4 . . . . . . 1 . . . 1 . . . . 3 . . . . Energy Bleed 1 | . . . . . . . . . . . . . . . . . 1 . . . . . . . . . Interference 6 | . . . . . . 3 . . . . . . . . . . . . . . . 3 . . . . Short Circuit 1 | . . . . . . 1 . . . . . . . . . . . . . . . . . . . . Damage (minor) 1 | . . . . . . . . . . . . . 1 . . . . . . . . . . . . . Siege Activations . | . . . . . . . . . . . . . . . . . . . . . . . . . . . Martial Activations . | . . . . . . . . . . . . . . . . . . . . . . . . . . . Shielding Activations . | . . . . . . . . . . . . . . . . . . . . . . . . . . . Robots Disrupted . | . . . . . . . . . . . . . . . . . . . . . . . . . . . Combat Hostiles . | . . . . . . . . . . . . . . . . . . . . . . . . . . . Robots Corrupted 9 | . . . . . . . . . . . . . 3 . . . 4 . . . 2 . . . . . Combat Hostiles 9 | . . . . . . . . . . . . . 3 . . . 4 . . . 2 . . . . . Parts Fried 19 | . . . 1 . . . . . . . . . 5 . 2 . 9 . . . 2 . . . . . Impact Corruptions 1 | . . . 1 . . . . . . . . . . . . . . . . . . . . . . . Robots Melted 8 | . . 1 . . . . . . . 6 . . . . . . 1 . . . . . . . . . Combat Hostiles 7 | . . 1 . . . . . . . 5 . . . . . . 1 . . . . . . . . . Parts Melted 30 | . . 1 . . . 2 . . . 17 . . . 1 . . 1 1 . 5 1 1 . . . . Heat Transferred 17670 | . . 148 312 . . 2100 150 400 . 4800 . 1511 439 666 74 481 450 350 . 1998 790 2600 240 . 111 50 Parts Sabotaged . | . . . . . . . . . . . . . . . . . . . . . . . . . . . Parts Stolen . | . . . . . . . . . . . . . . . . . . . . . . . . . . . Parts Stripped . | . . . . . . . . . . . . . . . . . . . . . . . . . . . Power Chain Reactions 4 | . . . . . . . . . . . . . 2 . . . 1 . . . 1 . . . . . Alert | -11 -10 -10 -8 -8 -8 -6 -6 -6 -6 -5 -5 -5 -5 -5 -5 -4 -4 -4 -4 -3 -3 -3 -2 -2 -2 -1 ------- Run | Yrd Mat Sub Mat Sto Rec Fac Low Low Dat Pro Fac Ext Cet Arc Hub Fac Upp Upp Zhi Pro Res Tes Res Qua Sec Acc Maximum Alert Level 3 | . . . 1 . . . . . . . 2 2 2 1 3 1 . . . . 2 2 2 . . 1 Low Security (%) 68 | 100 100 . 60 100 100 100 . . . . 63 63 30 73 51 2 . . . . 87 3 46 100 100 46 Level 1 24 | . . . 39 . . . . . . . 25 28 52 26 5 97 . . . . 5 43 36 . . 53 Level 2 7 | . . . . . . . . . . . 11 7 16 . 38 . . . . . 7 52 17 . . . Level 3 . | . . . . . . . . . . . . . . . 3 . . . . . . . . . . . Level 4 . | . . . . . . . . . . . . . . . . . . . . . . . . . . . Level 5 . | . . . . . . . . . . . . . . . . . . . . . . . . . . . High Security . | . . . . . . . . . . . . . . . . . . . . . . . . . . . Max Security . | . . . . . . . . . . . . . . . . . . . . . . . . . . . Peak Influence 750 | 10 47 . 339 115 169 111 . . . . 449 517 436 286 750 379 . . . . 424 644 453 78 177 342 Initial 353 | . . . 5 76 39 60 . . . . 8 210 280 159 16 353 . . . . . 210 290 78 . 93 Average 147 | . 16 . 179 43 35 52 . . . . 137 149 265 145 295 276 . . . . 114 407 244 12 18 198 Influence Increases 10682 | 15 194 50 1361 399 324 559 105 165 . 347 614 879 600 264 1034 437 400 10 5 225 712 870 320 36 308 449 Destroy 0b10 Robot/C 4640 | . 120 40 740 160 220 300 60 140 . 240 80 440 260 80 280 140 360 . . 200 360 260 140 . . 20 Destroy 0b10 Robot/NC 510 | 15 10 . 100 20 40 10 5 5 . 70 25 40 10 35 30 15 . 10 5 5 15 35 . . 10 . Destroy Leader 768 | . 22 10 196 76 . 60 10 20 . 30 34 44 20 . 52 12 40 . . 20 60 30 30 . 2 . Allied During Kill 967 | . . . . . . 19 . . . 7 11 219 247 115 349 . . . . . . . . . . . Successful Hack 360 | . 12 . 50 21 6 44 . . . . 31 34 . . 8 . . . . . 26 21 12 21 53 21 Select Force Hacks 150 | . 30 . 60 30 30 . . . . . . . . . . . . . . . . . . . . . Disable Machine 720 | . . . 75 45 . 15 . . . . 75 . 15 30 105 15 . . . . 30 150 15 . 105 45 Destroy Structure 1347 | . . . 35 2 28 16 . . . . 178 42 48 4 210 90 . . . . 146 374 108 . 63 3 Advance Influence 50 | . . . . . . 50 . . . . . . . . . . . . . . . . . . . . Partial Spotted 30 | . . . 15 . . . . . . . . . . . . . . . . . . . 15 . . . Lose Combat Pursuer 1140 | . . . 90 45 . 45 30 . . . 180 60 . . . 165 . . . . 75 . . 15 75 360 Influence Decreases 10340 | 15 181 53 1191 479 399 500 189 104 61 333 197 810 702 613 361 825 593 151 5 225 338 728 696 176 151 264 Entered New Map 2042 | . . 7 5 104 61 15 32 . 61 . 6 221 220 239 33 369 125 28 . . . 164 226 62 . 64 Time Decay 6571 | 15 174 46 676 375 338 394 147 104 . 313 121 479 422 334 188 416 458 123 5 225 288 404 270 46 120 90 Lost Part 617 | . 7 . 60 . . 30 10 . . . 40 10 . . 20 40 10 . . . 50 160 50 . 20 110 Lost Ally 431 | . . . . . . 61 . . . 20 30 100 60 40 120 . . . . . . . . . . . Purge Threat 679 | . . . 450 . . . . . . . . . . . . . . . . . . . 150 68 11 . Squads Dispatched 59 | . 2 . 5 4 . 4 . . . . 7 2 . . 8 6 . . . . 7 5 2 . 2 5 Investigation 9 | . 1 . 2 1 . . . . . . . 1 . . 1 1 . . . . 1 . . . . 1 Extermination 15 | . . . . . . 2 . . . . 1 . . . 1 3 . . . . 3 2 1 . 1 1 Reinforcement 22 | . 1 . 3 . . 1 . . . . 4 1 . . 5 2 . . . . 1 2 1 . 1 . Assault 4 | . . . . . . . . . . . . . . . 1 . . . . . . 1 . . . 2 Garrison 9 | . . . . 3 . 1 . . . . 2 . . . . . . . . . 2 . . . . 1 Intercept . | . . . . . . . . . . . . . . . . . . . . . . . . . . . Searches Triggered . | . . . . . . . . . . . . . . . . . . . . . . . . . . . Data Miner Redirects 1 | . . . . . . . . . . . . . . . . . . . . . 1 . . . . . Construction Impeded 8 | . . . 1 . . . . . . . 1 1 . . 1 1 . . . . 1 2 . . . . Haulers Reinforced 2 | . . . . . . . . . . . 1 . . . . 1 . . . . . . . . . . Active Scanning Responses . | . . . . . . . . . . . . . . . . . . . . . . . . . . . Cargo Convoy Interrupts 2 | . . . . . . 1 . . . . . . . . . . . . . . . . 1 . . . Stealth | -11 -10 -10 -8 -8 -8 -6 -6 -6 -6 -5 -5 -5 -5 -5 -5 -4 -4 -4 -4 -3 -3 -3 -2 -2 -2 -1 --------- Run | Yrd Mat Sub Mat Sto Rec Fac Low Low Dat Pro Fac Ext Cet Arc Hub Fac Upp Upp Zhi Pro Res Tes Res Qua Sec Acc Distress Signals 38 | . 2 . 4 2 . 1 . . . 13 1 2 2 . 3 1 . . . . 3 . 1 . 2 1 Communications Jammed . | . . . . . . . . . . . . . . . . . . . . . . . . . . . Distress Signals . | . . . . . . . . . . . . . . . . . . . . . . . . . . . Times Spotted 438 | . 9 3 63 15 5 28 5 7 . 18 22 29 12 16 19 29 18 . . 12 29 23 34 4 15 23 Peak Tracking Total 24 | . 3 2 5 4 2 5 3 4 . 3 13 5 5 2 10 8 4 . . 4 11 5 24 2 10 15 Tactical Retreats 41 | . . . 5 2 1 3 1 . . . 3 3 . . . 5 . . . 1 6 . . 1 4 6 ECM-based Alert Blocks 6 | . . . . . . . . . . . . . . . . . . . . 1 5 . . . . . Traps | -11 -10 -10 -8 -8 -8 -6 -6 -6 -6 -5 -5 -5 -5 -5 -5 -4 -4 -4 -4 -3 -3 -3 -2 -2 -2 -1 ------- Run | Yrd Mat Sub Mat Sto Rec Fac Low Low Dat Pro Fac Ext Cet Arc Hub Fac Upp Upp Zhi Pro Res Tes Res Qua Sec Acc Traps Triggered 15 | . . . 1 4 . . . . . . 1 1 . . 1 1 . . . . 5 . . . 1 . Indirectly 2 | . . . . . . . . . . . . . . . . . . . . . 2 . . . . . Trap Hack Attempts . | . . . . . . . . . . . . . . . . . . . . . . . . . . . Triggered . | . . . . . . . . . . . . . . . . . . . . . . . . . . . Disarmed . | . . . . . . . . . . . . . . . . . . . . . . . . . . . Reprogrammed . | . . . . . . . . . . . . . . . . . . . . . . . . . . . Reused . | . . . . . . . . . . . . . . . . . . . . . . . . . . . Traps Extracted . | . . . . . . . . . . . . . . . . . . . . . . . . . . . Installed . | . . . . . . . . . . . . . . . . . . . . . . . . . . . Triggered . | . . . . . . . . . . . . . . . . . . . . . . . . . . . Objects Rigged 1 | . . . . . . . . . . . . . . . . . . . . . . . . . 1 . Exploded 1 | . . . . . . . . . . . . . . . . . . . . . . . . . 1 . Machines | -11 -10 -10 -8 -8 -8 -6 -6 -6 -6 -5 -5 -5 -5 -5 -5 -4 -4 -4 -4 -3 -3 -3 -2 -2 -2 -1 ---------- Run | Yrd Mat Sub Mat Sto Rec Fac Low Low Dat Pro Fac Ext Cet Arc Hub Fac Upp Upp Zhi Pro Res Tes Res Qua Sec Acc Machines Disabled 61 | . . . 5 3 . 1 . . . 6 5 4 1 2 7 1 . . . . 2 13 1 . 7 3 Max in Single Turn 5 | . . . 1 1 . 1 . . . 2 . 1 1 1 5 1 . . . . 1 2 1 . 2 1 Garrison Access 2 | . . . . . . . . . . . . . . . . . . . . . . . . . . 2 Network Hub 1 | . . . . . . . . . . . . . . . 1 . . . . . . . . . . . Energy Cycler 1 | . . . . . . . . . . . . 1 . . . . . . . . . . . . . . Machines Repaired . | . . . . . . . . . . . . . . . . . . . . . . . . . . . Machines Dismantled . | . . . . . . . . . . . . . . . . . . . . . . . . . . . Machines Sabotaged . | . . . . . . . . . . . . . . . . . . . . . . . . . . . Overloaded Fab Kills . | . . . . . . . . . . . . . . . . . . . . . . . . . . . Hacking | -11 -10 -10 -8 -8 -8 -6 -6 -6 -6 -5 -5 -5 -5 -5 -5 -4 -4 -4 -4 -3 -3 -3 -2 -2 -2 -1 --------- Run | Yrd Mat Sub Mat Sto Rec Fac Low Low Dat Pro Fac Ext Cet Arc Hub Fac Upp Upp Zhi Pro Res Tes Res Qua Sec Acc Machines Accessed 84 | . 3 2 15 9 7 4 1 . 3 . 3 5 1 . 3 3 1 . 4 . 5 2 1 2 7 3 Terminals 53 | . 2 . 9 7 4 2 . . . . 3 5 1 . 3 1 . . . . 4 2 1 1 6 2 Fabricators 3 | . . . . . . . . . . . . . . . . 2 . . . . 1 . . . . . Repair Stations 2 | . . . 1 1 . . . . . . . . . . . . . . . . . . . . . . Recycling Units 5 | . 1 . 2 1 1 . . . . . . . . . . . . . . . . . . . . . Scanalyzers 5 | . . . 2 . . 1 . . . . . . . . . . . . . . . . . 1 1 . Garrison Access 3 | . . . 1 . . 1 . . . . . . . . . . . . . . . . . . . 1 Total Hacks 294 | . 14 3 47 19 17 12 1 . 24 . 12 18 1 . 9 8 1 . 17 . 10 8 8 12 44 9 Successful 165 | . 8 3 29 9 7 7 1 . 24 . 6 12 . . 3 4 1 . 17 . 2 2 4 7 17 2 Failed 128 | . 6 . 18 10 10 5 . . . . 6 6 1 . 6 4 . . . . 8 6 4 4 27 7 Catastrophic 23 | . . . 2 3 . . . . . . . 1 1 . . . . . . . 3 2 1 1 6 3 Database Lockouts 1 | . . . . . . . . . . . . . . . . . . . . . . . . 1 . . Manual 112 | . 12 . 25 10 14 3 . . . . 8 3 1 . 9 2 . . . . 2 4 6 2 10 1 Terminals 197 | . 12 . 30 16 13 9 . . . . 12 18 1 . 9 3 . . . . 8 8 8 4 41 5 Fabricators 7 | . . . . . . . . . . . . . . . . 5 . . . . 2 . . . . . Repair Stations 7 | . . . 5 2 . . . . . . . . . . . . . . . . . . . . . . Recycling Units 6 | . 2 . 2 1 1 . . . . . . . . . . . . . . . . . . . . . Scanalyzers 19 | . . . 7 . . 1 . . . . . . . . . . . . . . . . . 8 3 . Garrison Access 9 | . . . 3 . . 2 . . . . . . . . . . . . . . . . . . . 4 Terminal Hacks 104 | . 3 3 9 4 4 5 1 . 24 . 3 9 . . 1 1 1 . 17 . 1 2 4 1 11 . Record 17 | . . 1 . . 1 . . . 6 . . . . . . . . . 5 . . . . . 4 . Part Schematic 18 | . . . . . . . . . 11 . . 3 . . . . . . 4 . . . . . . . Robot Schematic 4 | . . . . . . . . . 4 . . . . . . . . . . . . . . . . . Robot Analysis 4 | . . . . . . . . . . . . . . . . . . . 4 . . . . . . . Prototype ID Bank 16 | . 1 . 4 . . 1 . . 3 . 1 2 . . . . . . 4 . . . . . . . Open Door 4 | . . 1 . 1 . . 1 . . . . . . . . . 1 . . . . . . . . . Level Access Points 6 | . . . . . . 1 . . . . 1 1 . . 1 . . . . . . 1 . . 1 . Branch Access Points 4 | . . . 1 . . . . . . . . . . . . 1 . . . . 1 . 1 . . . Emergency Access Points 1 | . . . . 1 . . . . . . . . . . . . . . . . . . . . . . Terminal Index 4 | . 1 . 1 . 1 . . . . . . 1 . . . . . . . . . . . . . . Alert Level 3 | . . . . . . 2 . . . . . . . . . . . . . . . . 1 . . . Unreport Threat 7 | . . . 3 . . . . . . . . . . . . . . . . . . . 1 1 2 . Locate Traps 2 | . . . . 1 . . . . . . . . . . . . . . . . . . . . 1 . Security Status 1 | . . . . . . . . . . . . . . . . . . . . . . . . . 1 . Recall Reinforcements 1 | . . . . . . . . . . . . 1 . . . . . . . . . . . . . . Hauler Manifests 1 | . . . . . . . . . . . 1 . . . . . . . . . . . . . . . Registered Components 5 | . 1 . . 1 . . . . . . . . . . . . . . . . . 1 1 . 1 . Registered Prototypes 3 | . . . . . . 1 . . . . . 1 . . . . . . . . . . . . 1 . Release Object 3 | . . 1 . . 2 . . . . . . . . . . . . . . . . . . . . . Fabricator Hacks 2 | . . . . . . . . . . . . . . . . 2 . . . . . . . . . . Load Schematic 1 | . . . . . . . . . . . . . . . . 1 . . . . . . . . . . Build 1 | . . . . . . . . . . . . . . . . 1 . . . . . . . . . . Repair Station Hacks 6 | . . . 4 2 . . . . . . . . . . . . . . . . . . . . . . Scan Component 3 | . . . 2 1 . . . . . . . . . . . . . . . . . . . . . . Repair 3 | . . . 2 1 . . . . . . . . . . . . . . . . . . . . . . Recycling Unit Hacks . | . . . . . . . . . . . . . . . . . . . . . . . . . . . Scanalyzer 13 | . . . 6 . . . . . . . . . . . . . . . . . . . . 5 2 . Insert Component 1 | . . . . . . . . . . . . . . . . . . . . . . . . 1 . . Analyze 3 | . . . . . . . . . . . . . . . . . . . . . . . . 3 . . Retrieve Study 9 | . . . 6 . . . . . . . . . . . . . . . . . . . . 1 2 . Garrison Access Hacks 1 | . . . . . . . . . . . . . . . . . . . . . . . . . . 1 Seal Access 1 | . . . . . . . . . . . . . . . . . . . . . . . . . . 1 Unauthorized Hacks 38 | . 5 . 10 3 3 2 . . . . 3 3 . . 2 1 . . . . 1 . . 1 3 1 Terminals 32 | . 4 . 8 2 2 2 . . . . 3 3 . . 2 . . . . . 1 . . 1 3 1 Track 1 | . . . . . . . . . . . . . . . . . . . . . . . . . 1 . Assimilate 2 | . . . . . . . . . . . 2 . . . . . . . . . . . . . . . Botnet 17 | . 2 . 3 2 1 1 . . . . 1 2 . . 2 . . . . . 1 . . 1 . 1 Detonate 1 | . . . . . . . . . . . . . . . . . . . . . . . . . 1 . Operators 3 | . . . . . . 1 . . . . . 1 . . . . . . . . . . . . 1 . Skim 8 | . 2 . 5 . 1 . . . . . . . . . . . . . . . . . . . . . Fabricators 1 | . . . . . . . . . . . . . . . . 1 . . . . . . . . . . Recompile 1 | . . . . . . . . . . . . . . . . 1 . . . . . . . . . . Repair Stations . | . . . . . . . . . . . . . . . . . . . . . . . . . . . Recycling Units 5 | . 1 . 2 1 1 . . . . . . . . . . . . . . . . . . . . . Tunnel 5 | . 1 . 2 1 1 . . . . . . . . . . . . . . . . . . . . . Scanalyzers . | . . . . . . . . . . . . . . . . . . . . . . . . . . . Garrison Access . | . . . . . . . . . . . . . . . . . . . . . . . . . . . Data Cores Recovered 3 | . . . 1 . . 1 . . . . . . . . . 1 . . . . . . . . . . Used . | . . . . . . . . . . . . . . . . . . . . . . . . . . . Hacking Detections 63 | . 2 . 13 8 4 4 . . . . 3 5 2 . 3 2 . . . . 5 2 1 1 6 2 Full Trace Events 3 | . . . . . . . . . . . . . . . 1 . . . . . 1 . . . . 1 Feedback Events . | . . . . . . . . . . . . . . . . . . . . . . . . . . . Feedback Blocked . | . . . . . . . . . . . . . . . . . . . . . . . . . . . Robot Schematics Acquired 5 | . . . . . . . . . 4 . . . . . . . . . . . . 1 . . . . Robots Built . | . . . . . . . . . . . . . . . . . . . . . . . . . . . Authchips . | . . . . . . . . . . . . . . . . . . . . . . . . . . . Time . | . . . . . . . . . . . . . . . . . . . . . . . . . . . Total Robot Build Rating . | . . . . . . . . . . . . . . . . . . . . . . . . . . . Part Schematics Acquired 19 | . . . . . . . . . 11 . . 3 . . . . . . 4 . . . . 1 . . Parts Built . | . . . . . . . . . . . . . . . . . . . . . . . . . . . Authchips . | . . . . . . . . . . . . . . . . . . . . . . . . . . . Time 69 | . . . . . . . . . . . . . . . . 69 . . . . . . . . . . Total Part Build Rating . | . . . . . . . . . . . . . . . . . . . . . . . . . . . Part Studies Acquired 8 | . . . 5 . . . . . . . . . . . . . . . . . . . . 1 2 . Parts Repaired 3 | . . . 2 1 . . . . . . . . . . . . . . . . . . . . . . Time 96 | . . . 52 44 . . . . . . . . . . . . . . . . . . . . . . Parts Recycled . | . . . . . . . . . . . . . . . . . . . . . . . . . . . Recycled Matter . | . . . . . . . . . . . . . . . . . . . . . . . . . . . Retrieved Matter . | . . . . . . . . . . . . . . . . . . . . . . . . . . . Retrieved Components . | . . . . . . . . . . . . . . . . . . . . . . . . . . . Parts Scanalyzed 1 | . . . . . . . . . . . . . . . . . . . . . . . . 1 . . Part Schematics Acquired 1 | . . . . . . . . . . . . . . . . . . . . . . . . 1 . . Parts Damaged 1 | . . . . . . . . . . . . . . . . . . . . . . . . 1 . . Bothacking | -11 -10 -10 -8 -8 -8 -6 -6 -6 -6 -5 -5 -5 -5 -5 -5 -4 -4 -4 -4 -3 -3 -3 -2 -2 -2 -1 ------------ Run | Yrd Mat Sub Mat Sto Rec Fac Low Low Dat Pro Fac Ext Cet Arc Hub Fac Upp Upp Zhi Pro Res Tes Res Qua Sec Acc Used RIF Installer . | . . . . . . . . . . . . . . . . . . . . . . . . . . . Robots Hacked . | . . . . . . . . . . . . . . . . . . . . . . . . . . . Non-combat . | . . . . . . . . . . . . . . . . . . . . . . . . . . . Combat . | . . . . . . . . . . . . . . . . . . . . . . . . . . . Robot Hacks Applied . | . . . . . . . . . . . . . . . . . . . . . . . . . . . Relay Couplers Released 1 | . . . . . . . . . . . . . . . . . . . . . . . . . . 1 Machine Destruction 1 | . . . . . . . . . . . . . . . . . . . . . . . . . . 1 Fabnet Peak Effective % . | . . . . . . . . . . . . . . . . . . . . . . . . . . . Robots Rewired 14 | . . . . . 4 . . . . 1 . 9 . . . . . . . . . . . . . . Allies Hacked . | . . . . . . . . . . . . . . . . . . . . . . . . . . . Hacks Repelled . | . . . . . . . . . . . . . . . . . . . . . . . . . . . Allies | -11 -10 -10 -8 -8 -8 -6 -6 -6 -6 -5 -5 -5 -5 -5 -5 -4 -4 -4 -4 -3 -3 -3 -2 -2 -2 -1 -------- Run | Yrd Mat Sub Mat Sto Rec Fac Low Low Dat Pro Fac Ext Cet Arc Hub Fac Upp Upp Zhi Pro Res Tes Res Qua Sec Acc Total Allies 31 | . . . . . 4 . . . . 2 1 16 5 . . . . . . . . . . . . 3 Largest Group 10 | . . . . . 4 4 . . . 1 2 9 10 8 6 . . . . . . . . . . . Highest-Rated Group 744 | . . . . . 54 54 . . . 96 59 390 744 566 514 . . . . . . . . . . . Highest-Rated Ally 159 | . . . . . 18 19 . . . 96 49 159 143 96 96 . . . . . . . . . . . Total Orders 6 | . . . . . . . . . . 1 1 . 4 . . . . . . . . . . . . . STAY 2 | . . . . . . . . . . . . . 2 . . . . . . . . . . . . . FOLLOW 2 | . . . . . . . . . . . . . 2 . . . . . . . . . . . . . EXPLORE 2 | . . . . . . . . . . 1 1 . . . . . . . . . . . . . . . Ally Attacks 349 | . . . . . . 12 . . . 13 10 155 39 26 94 . . . . . . . . . . . Total Damage 9907 | . . . . . . 220 . . . 354 1197 3254 894 925 3063 . . . . . . . . . . . Kills 57 | . . . . . . 3 . . . 2 8 18 6 2 18 . . . . . . . . . . . Allies Corrupted 1 | . . . . . . . . . . . . 1 . . . . . . . . . . . . . . Allies Melted . | . . . . . . . . . . . . . . . . . . . . . . . . . . . Intel | -11 -10 -10 -8 -8 -8 -6 -6 -6 -6 -5 -5 -5 -5 -5 -5 -4 -4 -4 -4 -3 -3 -3 -2 -2 -2 -1 ------- Run | Yrd Mat Sub Mat Sto Rec Fac Low Low Dat Pro Fac Ext Cet Arc Hub Fac Upp Upp Zhi Pro Res Tes Res Qua Sec Acc Active Infowar (turns) 17183 | 52 288 91 2706 927 207 829 1 687 127 320 424 1881 884 . 147 997 1148 750 302 925 1218 951 580 203 343 195 Optics 5709 | . . 91 2218 927 207 528 . . . . . . . . . . . . . . . 429 580 203 343 183 Sensors 4789 | . . . . . . 301 . . . 295 416 . . . . . 978 648 217 787 877 123 . . . 147 Terrain 1024 | . . . 484 . . . . . . . 361 . . . . . . . . . . 179 . . . . Structural 4 | . . . 4 . . . . . . . . . . . . . . . . . . . . . . . Seismic 4104 | 52 288 . . . . . 1 687 127 25 . 710 17 . 147 997 812 241 . . . . . . . . Machine Analysis 5759 | . . . 1170 927 207 . . . . . . . . . . . . . . . 1183 951 580 203 343 195 Cloaking 5033 | . . . . . . . . . . . 8 1881 884 . . 450 . 509 302 319 680 . . . . . Jamming 629 | . . . . . . . . . . . . . . . . . . . . 39 437 152 1 . . . ECM 688 | . . . . . . . . . . . . . . . . . . . . 441 85 162 . . . . Robot Analysis Total 4 | . . . . . . . . . . . . . . . . . . . 4 . . . . . . . Derelict Logs Recovered 6 | . . 2 . . . . 1 1 . 2 . . . . . . . . . . . . . . . . Drone Launches 5 | . . . . . . . . . . 3 2 . . . . . . . . . . . . . . . Drone Recoveries 1 | . . . . . . . . . . . 1 . . . . . . . . . . . . . . . Exploration | -11 -10 -10 -8 -8 -8 -6 -6 -6 -6 -5 -5 -5 -5 -5 -5 -4 -4 -4 -4 -3 -3 -3 -2 -2 -2 -1 ------------- Run | Yrd Mat Sub Mat Sto Rec Fac Low Low Dat Pro Fac Ext Cet Arc Hub Fac Upp Upp Zhi Pro Res Tes Res Qua Sec Acc Turns Passed 25356 | 163 486 637 2801 927 3007 992 1294 687 127 1356 460 2064 1026 743 485 1001 1148 750 306 1393 1218 964 580 203 343 195 Spaces Moved 11988 | 78 186 413 1411 490 862 447 393 376 76 614 343 809 213 119 181 348 394 454 176 720 592 438 313 382 533 627 Core 596 | 3 . . . . . . . . 1 . . . . . . . . . . . . . 147 382 63 . Treads 5176 | 75 186 104 1039 490 510 193 183 376 75 250 . 108 213 52 . 272 240 197 . 1 254 358 . . . . Legs 2624 | . . . . . . 152 . . . 364 109 443 . . . . 66 257 176 719 338 . . . . . Wheels 1108 | . . 309 372 . 352 75 . . . . . . . . . . . . . . . . . . . . Hover 1385 | . . . . . . 27 210 . . . 234 258 . 67 181 76 . . . . . . . . 318 14 Flight 683 | . . . . . . . . . . . . . . . . . 88 . . . . 80 166 . . 349 Fastest Speed 22 | 50 160 115 80 145 143 103 103 155 155 155 77 77 186 186 242 104 104 132 132 132 132 183 50 50 50 22 Average Speed 140 | 155 160 129 145 147 158 153 126 155 168 155 112 147 186 228 242 150 156 134 132 132 144 186 145 50 59 26 Slowest Speed 1150 | 160 160 240 240 160 180 230 155 155 1150 155 155 186 186 249 242 242 167 167 132 132 183 240 279 50 126 117 Overloaded Moves . | . . . . . . . . . . . . . . . . . . . . . . . . . . . Propulsion Burnouts . | . . . . . . . . . . . . . . . . . . . . . . . . . . . Robots Hopped 5 | . . . . . . . . . . . . . . . . . . . . . . . . . . 5 Potential Cave-ins 5 | . . . . . . . . . . . . . . . . . . . . . 5 . . . . . Cave-ins Triggered . | . . . . . . . . . . . . . . . . . . . . . . . . . . . Teleports 1 | . . . . . . . . . . . . . . . . . . . . . . 1 . . . . Microwarps 32 | . . . . . . . . . . . . . . . . . . . . . . . . . 9 23 Exploration Rate (%) 46 | 6 20 13 93 64 99 17 53 58 68 78 16 87 56 81 31 14 60 61 60 67 21 39 14 36 34 12 Regions Visited 26 Branch Regions 18 Pre-discovered Areas 12 | . 1 1 4 1 1 . . . 1 . . . . . . . . . 3 . . . . . . . Known Exits Taken 18 | . . . 1 . 1 1 1 1 1 1 1 . . . 1 1 1 1 1 1 1 1 1 . 1 . Unknown Exits Taken 8 | 1 1 1 . 1 . . . . . . . 1 1 1 . . . . . . . . . 1 . . Scrap Searched 18 | . . . . . . . 2 3 . 4 . . . . . . 2 5 . 2 . . . . . . Spaces Dug 354 | . . . . . 24 3 . . . . . . . . 6 13 31 2 . 37 74 140 23 . 1 . Terrain Destroyed 1096 | . . 1 32 3 30 16 36 49 . 16 . 13 24 1 173 52 98 12 . 110 108 263 39 . 20 . Melee 7 | . . . . . . . . . . . . . . . . . . . . 2 5 . . . . . Projectile 129 | . . 1 9 3 8 16 . . . . . 13 . 1 9 9 . 12 . 6 23 12 6 . 1 . AOE 960 | . . . 23 . 22 . 36 49 . 16 . . 24 . 164 43 98 . . 102 80 251 33 . 19 . Terrain Rammed 2 | . . . . . . . . . . . . . . . . . . . . . . . . . 1 1 Walls Destroyed . | . . . . . . . . . . . . . . . . . . . . . . . . . . . Machines Disabled 1 | . . . . . . . . . . . . . . . . . . . . . . . . . . 1 Actions | -11 -10 -10 -8 -8 -8 -6 -6 -6 -6 -5 -5 -5 -5 -5 -5 -4 -4 -4 -4 -3 -3 -3 -2 -2 -2 -1 --------- Run | Yrd Mat Sub Mat Sto Rec Fac Low Low Dat Pro Fac Ext Cet Arc Hub Fac Upp Upp Zhi Pro Res Tes Res Qua Sec Acc Total 19447 | 98 300 493 1901 659 2430 678 1167 468 75 907 409 1623 821 571 216 795 884 565 232 1070 828 533 417 390 474 443 Wait 6052 | . 73 59 194 109 1403 112 740 74 . 142 47 679 577 424 11 402 438 75 18 245 69 26 47 1 53 34 Move 11567 | 77 185 412 1410 489 861 446 392 375 75 613 342 808 212 118 180 347 393 453 175 719 591 437 312 381 389 375 Hop 5 | . . . . . . . . . . . . . . . . . . . . . . . . . . 5 Pick Up 133 | 4 2 4 47 2 13 7 5 2 . 8 3 4 4 2 3 4 1 2 3 1 7 4 . 1 . . Fast Attach 110 | 7 1 1 14 7 2 7 1 . . 6 2 . 1 1 . 1 1 2 6 1 11 11 3 1 8 15 Attach 83 | . . 4 11 . 2 7 4 2 . 7 3 3 2 . . 6 5 1 2 2 10 3 7 . 1 1 Detach 60 | . . 1 3 1 5 5 4 2 . 5 . 1 3 1 . 2 4 1 3 2 4 4 6 . . 3 Swap 100 | 1 1 1 28 8 2 3 . . . 1 1 1 2 3 3 1 3 1 . 21 16 3 . . . . Drop 178 | . 1 . 51 16 22 8 5 . . 14 1 4 . 2 4 1 3 1 6 . 15 6 15 1 . 2 Fire 955 | 9 37 11 136 25 88 81 6 13 . 90 5 55 20 20 13 30 36 29 19 74 83 33 26 . 9 7 Melee 55 | . . . 2 . . . 10 . . 11 . . . . . 1 . . . 5 22 4 . . . . Ram 14 | . . . 2 . . . . . . . 5 . . . 2 . . . . . . 2 1 . 1 1 Kick 1 | . . . . . . 1 . . . . . . . . . . . . . . . . . . . . Crush 25 | . . . 3 2 . 1 . . . . . 2 . . . . . . . . . . . 5 12 . Escape Stasis 9 | . . . . . . . . . . . . 8 . . . . . . . . . . . . 1 . Rewire 100 | . . . . . 32 . . . . 10 . 58 . . . . . . . . . . . . . . Trap . | . . . . . . . . . . . . . . . . . . . . . . . . . . . Miscellaneous . | . . . . . . . . . . . . . . . . . . . . . . . . . . . Route ------- -11/Scrapyard -10/Materials -10/Subcaves -8/Materials (discovered 4 exits: *Fac x3 / *Sto) -8/Storage (discovered 2 exits: *Fac / *Rec) -8/Recycling -6/Factory (discovered 5 exits: *Fac x4 / *Low) -6/Lower Caves -6/Lower Caves -6/Data Miner -5/Proximity Caves -5/Factory (discovered 7 exits: *Fac x4 / Upp x2 / *Ext) -5/Extension (discovered 3 exits: *Fac x2 / *Cet) -5/Cetus (discovered 2 exits: *Fac / [*Arc]) -5/Archives (discovered 3 exits: *Fac / *Hub x2) -5/Hub_04(d) (discovered 4 exits: *Fac x4) -4/Factory (discovered 3 exits: *Res / *Upp x2) -4/Upper Caves -4/Upper Caves -4/Zhirov -3/Proximity Caves -3/Research (discovered 3 exits: Arm / *Tes x2) -3/Testing -2/Research (discovered 3 exits: *Acc / *Qua x2) -2/Quarantine (discovered 3 exits: *Acc / *Sec / [*Frg]) -2/Section 7 -1/Access To Fleet Rendezvous History --------- Turn | Location | Event 4 | -11/Scrapyard | Discovered new exit (range 16) 164 | -11/Scrapyard | Entered Materials 317 | -10/Materials | Build established: Mutant 588 | -10/Materials | Discovered new exit (range 8) 650 | -10/Materials | Entered Subcaves 676 | -10/Subcaves | Learned location of 1 exit from Materials 752 | -10/Subcaves | Learned location of Zion (-7) 836 | -10/Subcaves | Core integrity fell below 50% 864 | -10/Subcaves | Lost 3 parts (1p1n1w) 910 | -10/Subcaves | Discovered new exit (range 8) 943 | -10/Subcaves | Shifting Twisted Machinery released Battle Rifle 947 | -10/Subcaves | Shifting Twisted Machinery released Sub. Laser 1189 | -10/Subcaves | Core integrity fell below 20% 1287 | -10/Subcaves | Entered Materials 1287 | -8/Materials | Evolved 4 slots: Propulsion x2, Utility x1, Weapon x1 1288 | -8/Materials | Identified exit to Factory 1753 | -8/Materials | Discovered exit to Factory (range 15) 2243 | -8/Materials | Build established: Scavenger-Tank 2394 | -8/Materials | Repaired Lgt. Treads 2566 | -8/Materials | Identified exit to Storage 3140 | -8/Materials | Repaired Lgt. Treads 3218 | -8/Materials | Build established: Scavenger-Skirmisher 3301 | -8/Materials | Discovered exit to Factory (range 8) 3344 | -8/Materials | Learned Factory stockpile data 3383 | -8/Materials | Learned location of Extension (-5) 3436 | -8/Materials | Learned Storage security intel 3447 | -8/Materials | Learned 12 Factory zone layouts 3468 | -8/Materials | Learned Factory emergency access door positions 4088 | -8/Materials | Entered Storage 4302 | -8/Storage | Used back door to open Recycling access 4302 | -8/Storage | Discovered new exit (range 5) 4402 | -8/Storage | Garrison activated, responded to threat 4492 | -8/Storage | Repaired Gauss Rifle 4787 | -8/Storage | Build established: Skirmisher 5015 | -8/Storage | Entered Recycling 5016 | -8/Recycling | Joined Warlord attack on 0b10 via Recycling 5016 | -8/Recycling | Identified exit to Factory 5206 | -8/Recycling | Entered Scraplab 5223 | -8/Recycling | Found Prototype Device 5223 | -8/Recycling | Identified Scrap Engine 5520 | -8/Recycling | Build established: Mutant 6832 | -8/Recycling | Build established: Construct 8022 | -8/Recycling | Entered Factory 8022 | -6/Factory | Accompanied by 4 allies 8022 | -6/Factory | Evolved 4 slots: Power x1, Propulsion x1, Utility x2 8023 | -6/Factory | Identified exit to Factory 8024 | -6/Factory | Identified exit to Lower Caves 8097 | -6/Factory | Build established: Commander-Construct 8352 | -6/Factory | Discovered exit to Factory (range 19) 8384 | -6/Factory | Assembled infested ambush trap array 8423 | -6/Factory | Lost 4 allies 8429 | -6/Factory | Build established: Construct 8694 | -6/Factory | Cargo convoy interrupted 8852 | -6/Factory | Spotted B-75 Beast 8929 | -6/Factory | Destroyed B-75 Beast 8940 | -6/Factory | Garrison activated, responded to threat 9014 | -6/Factory | Entered Lower Caves 9586 | -6/Lower Caves | Discovered new exit (range 15) 9611 | -6/Lower Caves | Learned location of 1 exit from Proximity Caves 9623 | -6/Lower Caves | Encountered a Warlord checkpoint 10304 | -6/Lower Caves | Identified exit to Lower Caves 10308 | -6/Lower Caves | Entered another Lower Caves area 10309 | -6/Lower Caves | Encountered a Warlord checkpoint 10488 | -6/Lower Caves | Learned 4 Factory zone layouts 10740 | -6/Lower Caves | Core integrity fell below 50% 10780 | -6/Lower Caves | Destroyed 7 combat bots 10900 | -6/Lower Caves | Discovered new exit (range 15) 10926 | -6/Lower Caves | Identified exit to Data Miner 10995 | -6/Lower Caves | Entered Data Miner 10995 | -6/Data Miner | Discovered new exit (range 6) 11025 | -6/Data Miner | Met Data Miner 11054 | -6/Data Miner | Learned location of Section 7 (-2) 11054 | -6/Data Miner | Acquired the access code to Warlord's prototype stash 11075 | -6/Data Miner | Received God Mode back door access code from Data Miner 11109 | -6/Data Miner | Identified exit to Proximity Caves 11122 | -6/Data Miner | Entered Proximity Caves 11143 | -5/Proximity Caves | Attracted the attention of an 0b10 checkpoint 11501 | -5/Proximity Caves | Learned location of 1 exit from Factory 12478 | -5/Proximity Caves | Entered Factory 12478 | -5/Factory | Accompanied by 1 ally 12478 | -5/Factory | Evolved 2 slots: Utility x2 12479 | -5/Factory | Identified exit to Upper Caves 12481 | -5/Factory | Identified exit to Extension 12750 | -5/Factory | Identified exit to Factory 12770 | -5/Factory | Garrison activated, responded to threat 12938 | -5/Factory | Entered Extension 13194 | -5/Extension | Build established: Mutant 13459 | -5/Extension | Rescued a captive Derelict 13461 | -5/Extension | Rescued a captive Derelict 13501 | -5/Extension | Rescued a captive Derelict 13536 | -5/Extension | Watched by a mysterious "MATRIX" hacker. 13721 | -5/Extension | Build established: Construct 13833 | -5/Extension | Rescued A7 14108 | -5/Extension | Build established: Hacker-Construct 14211 | -5/Extension | Spotted B-75 Beast 14223 | -5/Extension | Destroyed B-75 Beast 14230 | -5/Extension | Spotted B-75 Beast 14247 | -5/Extension | Destroyed B-75 Beast 14458 | -5/Extension | Energy Cycler disabled 14458 | -5/Extension | Rescued a captive Derelict 14458 | -5/Extension | Rescued a captive Derelict 14462 | -5/Extension | Rescued a captive Derelict 14769 | -5/Extension | Build established: Commander-Construct 14833 | -5/Extension | Discovered new exit (range 6) 15002 | -5/Extension | Entered Cetus 15002 | -5/Cetus | Accompanied by 7 allies (A7) 15007 | -5/Cetus | Acquired a Cetus Manufacturing Module code from A7 15047 | -5/Cetus | Spotted Cetus Guard 15047 | -5/Cetus | Spotted Cetus Guard 15050 | -5/Cetus | Spotted Cetus Guard 15050 | -5/Cetus | Spotted Cetus Guard 15062 | -5/Cetus | Destroyed Cetus Guard 15063 | -5/Cetus | Destroyed Cetus Guard 15063 | -5/Cetus | Allies destroyed Cetus Guard 15065 | -5/Cetus | Destroyed Cetus Guard 15127 | -5/Cetus | Build established: Hacker-Construct 15527 | -5/Cetus | Started Cetus Manufacturing Module 15552 | -5/Cetus | Manufactured an Enhanced Grunt 15577 | -5/Cetus | Manufactured an Enhanced Grunt 15585 | -5/Cetus | Discovered new exit (range 15) 15602 | -5/Cetus | Manufactured an Enhanced Grunt 15627 | -5/Cetus | Manufactured an Enhanced Grunt 15652 | -5/Cetus | Manufactured an Enhanced Grunt 15689 | -5/Cetus | Spotted Cetus Guard 15689 | -5/Cetus | Spotted Cetus Guard 15691 | -5/Cetus | Spotted Cetus Guard 15692 | -5/Cetus | Spotted Cetus Guard 15697 | -5/Cetus | Destroyed Cetus Guard 15697 | -5/Cetus | Destroyed Cetus Guard 15699 | -5/Cetus | Destroyed Cetus Guard 15700 | -5/Cetus | Destroyed Cetus Guard 15710 | -5/Cetus | Discovered exit to Factory (range 16) 15722 | -5/Cetus | Met Revision 17 15752 | -5/Cetus | Security sweep announced 15875 | -5/Cetus | Build established: Commander-Construct 15995 | -5/Cetus | Murdered A7 16006 | -5/Cetus | Extracted ID and sensor layout for unrecognized location from A7's data core 16028 | -5/Cetus | Entered Archives 16028 | -5/Archives | Accompanied by 8 allies 16079 | -5/Archives | Discovered exit to Factory (range 14) 16207 | -5/Archives | Discovered new exit (range 15) 16509 | -5/Archives | Discovered new exit (range 16) 16771 | -5/Archives | Entered Hub_04(d) 16771 | -5/Hub_04(d) | Accompanied by 6 allies 17071 | -5/Hub_04(d) | First assault squad dispatched 17136 | -5/Hub_04(d) | Lost 5 allies 17238 | -5/Hub_04(d) | Network Hub disabled 17256 | -5/Hub_04(d) | Entered Factory 17256 | -4/Factory | Evolved 2 slots: Propulsion x1, Utility x1 17362 | -4/Factory | Build established: Hacker-Construct 17983 | -4/Factory | Identified exit to Upper Caves 18134 | -4/Factory | Spotted B-86 Titan 18256 | -4/Factory | Discovered new exit (range 6) 18257 | -4/Factory | Entered Upper Caves 19303 | -4/Upper Caves | Discovered new exit (range 15) 19323 | -4/Upper Caves | Identified exit to Upper Caves 19405 | -4/Upper Caves | Entered another Upper Caves area 19573 | -4/Upper Caves | Encountered a Warlord checkpoint 20151 | -4/Upper Caves | Discovered new exit (range 3) 20154 | -4/Upper Caves | Identified exit to Zhirov 20155 | -4/Upper Caves | Entered Zhirov 20155 | -4/Zhirov | Discovered new exit (range 3) 20162 | -4/Zhirov | Identified exit to Proximity Caves 20182 | -4/Zhirov | Met Zhirov 20211 | -4/Zhirov | Learned location of Quarantine (-2) 20211 | -4/Zhirov | Learned location of Testing (-3) 20211 | -4/Zhirov | Learned location of Command (-1) 20219 | -4/Zhirov | Zhirov requested help retrieving the SGEMP Prototype 20239 | -4/Zhirov | Found Alien Artifact 20240 | -4/Zhirov | Identified Integrated Dissipator 20240 | -4/Zhirov | Installed Integrated Dissipator, increased core heat dissipation (+20) 20262 | -4/Zhirov | Found Alien Artifact 20461 | -4/Zhirov | Entered Proximity Caves 20944 | -3/Proximity Caves | Spotted B-86 Titan 21279 | -3/Proximity Caves | Destroyed B-86 Titan 21575 | -3/Proximity Caves | Attracted the attention of an 0b10 checkpoint 21681 | -3/Proximity Caves | Discovered new exit (range 9) 21690 | -3/Proximity Caves | Identified exit to Research 21854 | -3/Proximity Caves | Entered Research 21854 | -3/Research | Evolved 2 slots: Power x1, Utility x1 22325 | -3/Research | Spotted B-86 Titan 22882 | -3/Research | Identified exit to Armory 22882 | -3/Research | Identified exit to Testing 22906 | -3/Research | Incoming investigation squad redirected 22910 | -3/Research | System corruption reached 10% 22916 | -3/Research | Garrison activated, responded to threat 22946 | -3/Research | Destroyed 9 combat bots 23072 | -3/Research | Entered Testing 23118 | -3/Testing | Found Prototype Launcher 23118 | -3/Testing | Identified Z-bomb Delivery System 23174 | -3/Testing | Found Prototype Energy Cannon 23177 | -3/Testing | Found Prototype Energy Cannon 23177 | -3/Testing | Identified Imp. Potential Cannon (x2) 23284 | -3/Testing | Lost 3 parts (1p1n1u) 23383 | -3/Testing | Identified exit to Research 23569 | -3/Testing | Build established: Hacker-Skirmisher 23691 | -3/Testing | Found Portable AFG 23710 | -3/Testing | Spotted Striker 23796 | -3/Testing | Spotted Striker 23799 | -3/Testing | Spotted Alpha 7 23820 | -3/Testing | Destroyed Striker 23822 | -3/Testing | First assault squad dispatched 23850 | -3/Testing | Lost 4 parts (1p1n1u1w) 23867 | -3/Testing | Core integrity fell below 50% 23881 | -3/Testing | Stole the SGEMP Prototype 23882 | -3/Testing | Identified Transdimensional Reconstructor 23882 | -3/Testing | Warped through subspace 23912 | -3/Testing | Lost 4 parts (1p2n1u) 24001 | -3/Testing | System corruption reached 30% 24025 | -3/Testing | Build established: Hacker-Mutant 24036 | -3/Testing | Entered Research 24036 | -2/Research | Evolved 2 slots: Propulsion x1, Utility x1 24166 | -2/Research | Identified exit to Quarantine 24534 | -2/Research | System corruption reached 10% 24579 | -2/Research | Discovered new exit (range 9) 24611 | -2/Research | Spotted Striker 24611 | -2/Research | Spotted Striker 24612 | -2/Research | Cargo convoy interrupted 24612 | -2/Research | Spotted Executioner 24612 | -2/Research | Spotted Striker 24616 | -2/Research | Entered Quarantine 24644 | -2/Quarantine | Lost 3 parts (1n2u) 24743 | -2/Quarantine | Discovered new exit (range 13) 24757 | -2/Quarantine | Central database locked down 24781 | -2/Quarantine | Spotted Fortress 24815 | -2/Quarantine | Discovered new exit (range 6) 24815 | -2/Quarantine | Discovered new exit (range 6) 24819 | -2/Quarantine | Entered Section 7 24906 | -2/Section 7 | Found Alien Artifact 24906 | -2/Section 7 | Identified Core Reset Matrix 24906 | -2/Section 7 | Used Core Reset Matrix 24910 | -2/Section 7 | Detected hypermatrix surge 24910 | -2/Section 7 | Sensed 17 artifacts in vicinity 24936 | -2/Section 7 | Found Microwarp Drive 24953 | -2/Section 7 | Identified exit to Access 24956 | -2/Section 7 | Core integrity fell below 50% 24975 | -2/Section 7 | Spotted B-90 Cyclops 25013 | -2/Section 7 | Found Integrated Reactor 25013 | -2/Section 7 | Installed Integrated Reactor, increased core energy generation (+10) 25033 | -2/Section 7 | Spotted S7 Guard 25039 | -2/Section 7 | Found Core Membrane 25039 | -2/Section 7 | Installed Core Membrane, gained immunity to corruption 25148 | -2/Section 7 | Found Microwarp Drive 25158 | -2/Section 7 | Scanned by Researcher 25162 | -2/Section 7 | Entered Access 25162 | -1/Access | Evolved 2 slots: Propulsion x1, Utility x1 25163 | -1/Access | Attacked by Zhirov 25193 | -1/Access | Targeted by mysterious "MATRIX" hacker. 25236 | -1/Access | Lost 5 parts (1p3n1w) 25256 | -1/Access | Garrison activated, responded to threat 25338 | -1/Access | Core integrity fell below 50% 25355 | -1/Access | Discovered new exit (range 4) 25357 | -1/Access | Identified exit to Surface 25357 | *** | Heading to fleet! Last Messages --------------- 25347_ U-05 Engineer lays Concrete. 25347_ Slug penetrates Main Access Shell. 25348_ U-05 Engineer lays Concrete. 25348_ Penetrated by Slug. 25348_ Q-thruster destroyed. 25351_ Slug penetrates Main Access Shell. 25353_ Imp. Potential Cannon destroyed. 25354_ U-05 Engineer lays Concrete. 25355_ Penetrated by Slug. 25355_ Slug penetrates Terminal. 25355_ U-05 Engineer lays Concrete. 25355_ EXIT=FOUND 25355_ U-05 Engineer lays Concrete. 25356_ Slug penetrates Main Access Shell. 25356_ Q-thruster destroyed. 25356_ Dropped SGEMP Prototype. 25356_ Slug penetrates Main Access Shell. 25357_ U-05 Engineer lays Concrete. 25357_ EXIT=IDENTIFIED: SURFACE [Achievement: Winner's Signature] Map ----- +----------------------------------------------------+ | ??????????+ #?????????#[ !== ## # | | ??????????#% #?????????# === ## =! # | | ??????????# #?????????# == ## ! # | | ??????##### #?????????# ## #[ | | ??????? #?????????# ## # | | ???????? #?????????# ## # | | ????????? #?????????# ## ######## | | ?????????? #?????????? ## #??????# | | ########??# #???????????? = ??# #??????# | | # !!! ??# #?????????????? ????# #??????## | | # !! ?# #################+####### #???????? | | # !! ?+ #???????? | | # # #???????" | | # # #############################???????" | | # + #???????????????????????????????????" | | # # #???????????????????????????????????" | | # # #???????????????????????????????????" | | #########?# #???????????????????????????????????" | | ??????????# #?????##????????????????????????????? | | ??????????# ####### ##########??????????????????? | | ??????????# """T"""" "??????????????????? | | ??????????# """ """ h "????BB????????????? | | ??????????# h= """" "????BB????????????? | | ??????????# = & " "??????????????????? | | ??????????# !%* " "" " "??????????????????? | | ??????????# ! " @" " "??????????????????? | | ??????????# u " " "??????????????????? | | ??????????# u """""" "????BB????????????? | | ??????????# " ??? "????BB????????????? | | ??????????# " ? "??????????????????? | | ??????????# #######"##########??????????????????? | | ??????????# #???????????????????????????????????? | | ??????????# #???????????????????????????????????? | | ??????????# #???????????????????????????????????? | | ??????????# #???????????????????????????????????? | | ??????????# #???????????????????????????????????? | | ??????????# #???????????????????????????????????? | | ??????????# #???????????????????????????????????? | | ?????????## ##????????????######????????????????? | | ?????????# ############## #????#########???? | | ?????????+ T" #????# #???? | | ?????????# "" " ###### #???? | | ?????????# ###+########## #???? | | ?????????## ## ###/######## #???? | | ??????????# ## # #?# #???? | | ??????????# ## # #?# #???? | | ??????????# ## # #?# ##### | | ??????????# ## # #?# | | ?????????? ## # #?# | | ?????????? ## # #?# | +----------------------------------------------------+ Best States ------------- Heat Dissipation 74 Coolant Potential 65 Energy Generation 53 Energy Capacity 824 Matter Stores 300 Matter Capacity 300 Sight Range 23 Robot Scan Range 16 Terrain Scan Range 20 Terrain Scan Density 10 ECM Strength 2 Jamming Range 12 Cloak Strength 3 Base Temperature (-) 100 Armor Coverage 225 Evasion (%) 65 Melee Accuracy 8 Recoil Reduction 6 Offensive Hacking 38 Defensive Hacking 12 Authchip Count 1 Item Schematics ----------------- None Robot Schematics ------------------ None Fabricated ------------ Nothing Repaired ---------- Lgt. Treads | 55% | -8/Materials Lgt. Treads | 39% | -8/Materials Gauss Rifle | 32% | -8/Storage Studied --------- None Alien Tech Used ----------------- Integrated Dissipator Transdimensional Reconstructor Core Reset Matrix Microwarp Drive Integrated Reactor Core Membrane Achievements -------------- Winner's Signature Challenges ------------ None Game ------ Seed GatlingVoltaicTube Manual? 0 Play Time 02:53:35 Cumulative 452.1 hours Start 2026.04.26 @ 12:26:31 End 2026.04.26 @ 19:38:34 Sessions 3 Manual Loads 0 Difficulty Rogue Special Mode None Game No. 266 Rogue 266 Adventurer 0 Explorer 0 Win Type 2 Total 19 Types 9/1/4/2/1/0/0/2/0/0 Lore% 94 Gallery% 82 Achievement% 74 Wizard Run 0 Options --------- Layout 1 ASCII 0 Keyboard 0 Movement Mouse Keybinds 0 Fullscreen 2 Font 32/SmallcapsGlow Map View 50x35 Zoom Use 0% Tactical HUD 1 Map Filters NONE Filters NONE Steam 1 RUN: 5fb16d23-eec2-4c00-b7a0-666182c26120